[Event "Chpt Reg Jeunes Occitanie 2026 - Espalion"]
[Site "Espalion, France"]
[Round "4.8"]
[ECO "?"]
[Annotator "?"]
[TimeControl "1h30 + 30sec/cp"]

1. e4 {[%clk 1:30:59]} 1... c5 {[%clk 1:30:52][%emt 0:00:08]} 2. Bc4 {[%clk
1:31:22][%emt 0:00:07]} 2... Nc6 {[%clk 1:31:02][%emt 0:00:20]} 3. d3 {[%clk
1:31:06][%emt 0:00:47]} 3... g6 {[%clk 1:31:14][%emt 0:00:17]} 4. Nc3 {[%clk
1:31:26][%emt 0:00:09]} 4... Bg7 {[%clk 1:31:25][%emt 0:00:19]} 5. Be3 {[%clk
1:31:17][%emt 0:00:39]} 5... d6 {[%clk 1:30:57][%emt 0:00:59]} 6. Nf3 {[%clk
1:31:22][%emt 0:00:26]} 6... Nf6 {[%clk 1:29:36][%emt 0:01:50]} 7. h3 {[%clk
1:30:14][%emt 0:01:38]} 7... O-O {[%clk 1:29:25][%emt 0:00:40]} 8. O-O {[%clk
1:30:10][%emt 0:00:35]} 8... b6 {[%clk 1:19:43][%emt 0:10:12]} 9. Qd2 {[%clk
1:27:40][%emt 0:02:59]} 9... Bb7 {[%clk 1:18:51][%emt 0:01:22]} 10. Bg5 {[%clk
1:22:23][%emt 0:05:47]} 10... Na5 {[%clk 1:12:20][%emt 0:07:01]} 11. Bb3
{[%clk 1:19:43][%emt 0:03:10]} 11... Nxb3 {[%clk 1:12:37][%emt 0:00:13]} 12.
axb3 {[%clk 1:20:01][%emt 0:00:12]} 12... Nd7 {[%clk 1:07:27][%emt 0:05:39]}
13. Bh6 {[%clk 1:17:14][%emt 0:03:18]} 13... Ne5 {[%clk 1:00:31][%emt 0:07:26]}
 14. Nxe5 {[%clk 1:15:52][%emt 0:01:52]} 14... dxe5 {[%clk 1:00:24][%emt
0:00:37]} 15. Rfe1 {[%clk 1:08:27][%emt 0:07:55]} 15... Qd7 {[%clk
0:58:33][%emt 0:02:21]} 16. Rad1 {[%clk 1:05:03][%emt 0:03:54]} 16... Rfd8
{[%clk 0:55:44][%emt 0:03:18]} 17. Bxg7 {[%clk 1:01:11][%emt 0:04:23]} 17...
Kxg7 {[%clk 0:56:11][%emt 0:00:03]} 18. Qe3 {[%clk 0:59:30][%emt 0:02:12]}
18... Bc6 {[%clk 0:54:20][%emt 0:02:21]} 19. g4 {[%clk 0:50:38][%emt 0:09:22]}
19... Qd4 {[%clk 0:50:07][%emt 0:04:42]} 20. Qg3 {[%clk 0:49:28][%emt 0:01:41]}
 20... f6 {[%clk 0:49:32][%emt 0:01:05]} 21. h4 {[%clk 0:47:47][%emt 0:02:11]}
21... h6 {[%clk 0:43:49][%emt 0:06:13]} 22. g5 {[%clk 0:40:02][%emt 0:08:15]}
22... Rh8 {[%clk 0:37:23][%emt 0:06:56]} 23. gxf6+ {[%clk 0:36:23][%emt
0:04:09]} 23... exf6 {[%clk 0:37:47][%emt 0:00:05]} 24. h5 {[%clk
0:35:25][%emt 0:01:29]} 24... g5 {[%clk 0:36:57][%emt 0:01:19]} 25. Qf3 {[%clk
0:30:40][%emt 0:05:16]} 25... Qd7 {[%clk 0:34:23][%emt 0:03:03]} 26. Kh2
{[%clk 0:29:44][%emt 0:01:26]} 26... Qe6 {[%clk 0:31:37][%emt 0:03:15]} 27.
Ne2 {[%clk 0:27:37][%emt 0:02:38]} 27... Bd7 {[%clk 0:29:50][%emt 0:02:17]}
28. Rh1 {[%clk 0:26:07][%emt 0:02:00]} 28... Qg4 {[%clk 0:27:53][%emt 0:02:27]}
 29. Qe3 {[%clk 0:25:28][%emt 0:01:09]} 29... Qxh5+ {[%clk 0:27:06][%emt
0:01:17]} 30. Kg2 {[%clk 0:25:16][%emt 0:00:42]} 30... Qg4+ {[%clk
0:25:36][%emt 0:01:59]} 31. Ng3 {[%clk 0:25:02][%emt 0:00:45]} 31... Kg6
{[%clk 0:23:40][%emt 0:02:25]} 32. f3 {[%clk 0:24:16][%emt 0:01:16]} 32... Qf4
{[%clk 0:18:55][%emt 0:05:15]} 33. Qf2 {[%clk 0:24:07][%emt 0:00:39]} 33... g4
{[%clk 0:18:21][%emt 0:01:03]} 34. fxg4 {[%clk 0:21:46][%emt 0:02:52]} 34...
Qxf2+ {[%clk 0:18:21][%emt 0:00:31]} 35. Kxf2 {[%clk 0:22:13][%emt 0:00:02]}
35... Bxg4 {[%clk 0:18:16][%emt 0:00:34]} 36. Rdg1 {[%clk 0:21:41][%emt
0:01:02]} 36... Kf7 {[%clk 0:16:37][%emt 0:02:10]} 37. Rh4 {[%clk
0:20:00][%emt 0:02:11]} 37... Rag8 {[%clk 0:10:44][%emt 0:06:22]} 38. Nf1
{[%clk 0:19:30][%emt 0:01:00]} 38... Be6 {[%clk 0:10:30][%emt 0:00:44]} 39.
Rgh1 {[%clk 0:19:29][%emt 0:00:32]} 39... Rg6 {[%clk 0:07:53][%emt 0:03:06]}
40. Ne3 {[%clk 0:19:38][%emt 0:00:22]} 40... Kg7 {[%clk 0:07:56][%emt 0:00:27]}
 41. R1h2 {[%clk 0:19:19][%emt 0:00:49]} 41... Rg5 {[%clk 0:07:13][%emt
0:01:12]} 42. Rh1 {[%clk 0:19:08][%emt 0:00:42]} 42... Kg6 {[%clk
0:06:49][%emt 0:00:54]} 43. Kf3 {[%clk 0:18:13][%emt 0:01:25]} 43... Rh7
{[%clk 0:06:55][%emt 0:00:25]} 44. Kf2 {[%clk 0:18:12][%emt 0:00:31]} 44...
Rh8 {[%clk 0:07:21][%emt 0:00:04]} 45. Kf3 {[%clk 0:18:23][%emt 0:00:19]}
45... h5 {[%clk 0:06:44][%emt 0:01:07]} 46. Kf2 {[%clk 0:18:29][%emt 0:00:24]}
46... Rh7 {[%clk 0:07:06][%emt 0:00:08]} 47. R1h2 {[%clk 0:17:45][%emt
0:01:13]} 47... Rh8 {[%clk 0:06:38][%emt 0:00:58]} 48. Rh1 {[%clk
0:17:32][%emt 0:00:42]} 48... Rh6 {[%clk 0:06:27][%emt 0:00:43]} 49. R1h2
{[%clk 0:17:40][%emt 0:00:22]} 49... Bg4 {[%clk 0:05:59][%emt 0:00:58]} 50.
Rh1 {[%clk 0:17:14][%emt 0:00:56]} 50... Kg7 {[%clk 0:05:39][%emt 0:00:49]}
51. R1h2 {[%clk 0:17:14][%emt 0:00:30]} 51... f5 {[%clk 0:04:40][%emt 0:01:30]}
 52. exf5 {[%clk 0:17:01][%emt 0:00:43]} 52... Bxf5 {[%clk 0:05:07][%emt
0:00:02]} 53. Ke2 {[%clk 0:16:22][%emt 0:01:09]} 53... Bg4+ {[%clk
0:05:00][%emt 0:00:37]} 54. Kd2 {[%clk 0:15:45][%emt 0:01:07]} 54... Be6
{[%clk 0:04:49][%emt 0:00:41]} 55. Ke2 {[%clk 0:15:44][%emt 0:00:31]} 55...
Kf6 {[%clk 0:04:22][%emt 0:00:57]} 56. Rf2+ {[%clk 0:15:22][%emt 0:00:53]}
56... Ke7 {[%clk 0:04:21][%emt 0:00:31]} 57. Rf1 {[%clk 0:14:44][%emt 0:01:08]}
 57... Rf6 {[%clk 0:04:47][%emt 0:00:03]} 58. Rfh1 {[%clk 0:14:31][%emt
0:00:43]} 58... Bf7 {[%clk 0:05:09][%emt 0:00:07]} 59. R1h2 {[%clk
0:14:19][%emt 0:00:43]} 59... Rf4 {[%clk 0:05:12][%emt 0:00:27]} 60. R4h3
{[%clk 0:13:54][%emt 0:00:55]} 60... Kd6 {[%clk 0:04:52][%emt 0:00:51]} 61.
Rh1 {[%clk 0:13:48][%emt 0:00:35]} 61... a6 {[%clk 0:03:10][%emt 0:02:13]} 62.
Ra1 {[%clk 0:13:21][%emt 0:00:57]} 62... a5 {[%clk 0:03:37][%emt 0:00:02]} 63.
Rah1 {[%clk 0:13:34][%emt 0:00:16]} 63... Ke7 {[%clk 0:03:40][%emt 0:00:28]}
64. R1h2 {[%clk 0:13:46][%emt 0:00:18]} 64... Rg1 {[%clk 0:03:13][%emt
0:00:58]} 65. Kd2 {[%clk 0:13:35][%emt 0:00:41]} 65... Rg5 {[%clk
0:03:29][%emt 0:00:14]} 66. Ke2 {[%clk 0:13:17][%emt 0:00:47]} 66... e4 {[%emt
0:00:46]} 67. dxe4 {[%clk 0:12:58][%emt 0:00:47]} 67... Rxe4 {[%clk 0:03:44]}
68. Kf3 {[%clk 0:12:45][%emt 0:00:43]} 68... Rd4 {[%clk 0:03:01][%emt 0:01:13]}
 69. Re2 {[%clk 0:12:49][%emt 0:00:26]} 69... Kd6 {[%clk 0:03:05][%emt
0:00:26]} 70. c3 {[%clk 0:12:08][%emt 0:01:12]} 70... Rd3 {[%clk 0:02:33][%emt
0:01:02]} 71. Ke4 {[%clk 0:12:08][%emt 0:00:29]} 71... Bg6+ {[%clk
0:02:49][%emt 0:00:14]} 72. Kf4 {[%clk 0:12:15][%emt 0:00:23]} 72... Rg4+
{[%clk 0:02:12][%emt 0:01:08]} 73. Nxg4 {[%clk 0:12:02][%emt 0:00:42]} 73...
Rxh3 {[%clk 0:02:38][%emt 0:00:04]} 74. Nf2 {[%clk 0:11:55][%emt 0:00:37]}
74... Rh2 {[%clk 0:01:28][%emt 0:01:39]} 75. Ne4+ {[%clk 0:11:50][%emt
0:00:36]} 75... Bxe4 {[%clk 0:01:57][%emt 0:00:02]} 76. Rxh2 {[%clk
0:12:13][%emt 0:00:06]} 76... Bg6 {[%clk 0:02:16][%emt 0:00:11]} 77. Rd2+
{[%clk 0:11:57][%emt 0:00:47]} 77... Kc6 {[%clk 0:01:57][%emt 0:00:49]} 78.
Ke5 {[%clk 0:12:13][%emt 0:00:14]} 78... Bf7 {[%clk 0:01:57][%emt 0:00:30]}
79. Rd6+ {[%clk 0:11:46][%emt 0:00:57]} 1-0

[White "IMBERT GARCIA, Elio"]
[Black "FIORIO, Thomas"]
[WhiteElo "1625"]
[BlackElo "1822"]
[Result "1/2-1/2"]
[Date "2026.03.05"]

[Event "Chpt Reg Jeunes Occitanie 2026 - Espalion"]
[Site "Espalion, France"]
[Round "4.9"]
[ECO "?"]
[Annotator "?"]
[TimeControl "1h30 + 30sec/cp"]

1. c4 {[%clk 1:30:57][%emt 0:00:02]} 1... e5 {[%clk 1:30:50][%emt 0:00:10]} 2.
g3 {[%clk 1:31:22][%emt 0:00:06]} 2... Nc6 {[%clk 1:30:51][%emt 0:00:28]} 3.
Bg2 {[%clk 1:31:42][%emt 0:00:10]} 3... g6 {[%clk 1:30:41][%emt 0:00:41]} 4.
Nc3 {[%clk 1:31:45][%emt 0:00:27]} 4... Bg7 {[%clk 1:30:31][%emt 0:00:39]} 5.
d3 {[%clk 1:31:20][%emt 0:00:56]} 5... f5 {[%clk 1:30:01][%emt 0:00:59]} 6. e3
{[%clk 1:30:59][%emt 0:00:48]} 6... Nf6 {[%clk 1:28:38][%emt 0:01:56]} 7. Nge2
{[%clk 1:31:07][%emt 0:00:23]} 7... d6 {[%clk 1:28:18][%emt 0:00:49]} 8. a3
{[%clk 1:30:40][%emt 0:00:58]} 8... a5 {[%clk 1:25:00][%emt 0:03:48]} 9. b3
{[%clk 1:29:07][%emt 0:02:03]} 9... O-O {[%clk 1:23:04][%emt 0:02:25]} 10. O-O
{[%clk 1:29:01][%emt 0:00:36]} 10... Be6 {[%clk 1:20:12][%emt 0:03:21]} 11.
Bb2 {[%clk 1:26:58][%emt 0:02:34]} 11... d5 {[%clk 1:15:37][%emt 0:05:05]} 12.
cxd5 {[%clk 1:25:21][%emt 0:02:07]} 12... Nxd5 {[%clk 1:15:54][%emt 0:00:12]}
13. Nxd5 {[%clk 1:20:06][%emt 0:05:46]} 13... Bxd5 {[%clk 1:16:16][%emt
0:00:07]} 14. Bxd5+ {[%clk 1:19:50][%emt 0:00:47]} 14... Qxd5 {[%clk
1:16:38][%emt 0:00:08]} 15. Qc2 {[%clk 1:17:36][%emt 0:02:44]} 15... Rad8
{[%clk 1:14:18][%emt 0:02:50]} 16. Rfd1 {[%clk 1:14:52][%emt 0:03:14]} 16...
Qe6 {[%clk 1:11:41][%emt 0:03:06]} 17. Qc4 {[%clk 1:13:08][%emt 0:02:14]}
17... Rf6 {[%clk 1:08:31][%emt 0:03:40]} 18. d4 {[%clk 1:01:26][%emt 0:12:13]}
18... Qxc4 {[%clk 1:04:54][%emt 0:04:07]} 19. bxc4 {[%clk 1:01:36][%emt
0:00:20]} 19... exd4 {[%clk 1:05:03][%emt 0:00:21]} 20. c5 {[%clk
0:44:29][%emt 0:17:36]} 20... Rf7 {[%clk 0:57:46][%emt 0:07:47]} 21. Bxd4
{[%clk 0:39:45][%emt 0:05:14]} 21... Rfd7 {[%clk 0:55:38][%emt 0:02:37]} 22.
Rab1 {[%clk 0:38:50][%emt 0:01:25]} 22... b6 {[%clk 0:44:23][%emt 0:11:46]}
23. cxb6 {[%clk 0:37:36][%emt 0:01:43]} 23... cxb6 {[%clk 0:44:48][%emt
0:00:06]} 24. Rxb6 {[%clk 0:36:43][%emt 0:01:23]} 24... Nxd4 {[%clk
0:45:03][%emt 0:00:15]} 25. Nxd4 {[%clk 0:36:26][%emt 0:00:48]} 25... Bxd4
{[%clk 0:45:20][%emt 0:00:13]} 26. Rxd4 {[%clk 0:36:13][%emt 0:00:43]} 26...
Rxd4 {[%clk 0:45:44][%emt 0:00:05]} 27. exd4 {[%clk 0:36:32][%emt 0:00:11]}
27... Rxd4 {[%clk 0:46:10][%emt 0:00:05]} 28. Rb5 {[%clk 0:33:07][%emt
0:03:55]} 28... Ra4 {[%clk 0:46:30][%emt 0:00:09]} 29. Rb3 {[%clk
0:33:27][%emt 0:00:10]} 29... Kg7 {[%clk 0:46:12][%emt 0:00:47]} 30. Kg2
{[%clk 0:33:06][%emt 0:00:53]} 30... Re4 {[%clk 0:43:55][%emt 0:02:45]} 31.
Rb5 {[%clk 0:30:37][%emt 0:03:00]} 1/2-1/2

[White "GARNIER, Alexis"]
[Black "MOREL, Yael"]
[WhiteElo "1796"]
[BlackElo "1794"]
[Result "1/2-1/2"]
[Date "2026.03.05"]

[Event "Chpt Reg Jeunes Occitanie 2026 - Espalion"]
[Site "Espalion, France"]
[Round "4.10"]
[ECO "?"]
[Annotator "?"]
[TimeControl "1h30 + 30sec/cp"]

1. e4 {[%clk 1:30:56][%emt 0:00:04]} 1... c5 {[%clk 1:30:53][%emt 0:00:08]} 2.
Nf3 {[%clk 1:31:20][%emt 0:00:06]} 2... a6 {[%clk 1:30:57][%emt 0:00:26]} 3.
c3 {[%clk 1:31:04][%emt 0:00:45]} 3... d5 {[%clk 1:31:06][%emt 0:00:22]} 4.
exd5 {[%clk 1:29:47][%emt 0:01:47]} 4... Qxd5 {[%clk 1:31:25][%emt 0:00:10]}
5. d4 {[%clk 1:29:58][%emt 0:00:20]} 5... Nf6 {[%clk 1:31:24][%emt 0:00:31]}
6. Be2 {[%clk 1:29:18][%emt 0:01:10]} 6... e6 {[%clk 1:31:23][%emt 0:00:31]}
7. Be3 {[%clk 1:28:31][%emt 0:01:16]} 7... cxd4 {[%clk 1:31:38][%emt 0:00:15]}
8. Qxd4 {[%clk 1:26:42][%emt 0:02:19]} 8... Nc6 {[%clk 1:30:16][%emt 0:01:53]}
9. Qd2 {[%clk 1:25:09][%emt 0:02:03]} 9... Qxd2+ {[%clk 1:28:43][%emt 0:02:03]}
 10. Nbxd2 {[%clk 1:25:16][%emt 0:00:22]} 10... Be7 {[%clk 1:28:31][%emt
0:00:41]} 11. O-O {[%clk 1:20:17][%emt 0:05:29]} 11... Nd5 {[%clk
1:27:11][%emt 0:01:51]} 12. Bg5 {[%clk 1:17:54][%emt 0:02:53]} 12... Bxg5
{[%clk 1:23:12][%emt 0:04:29]} 13. Nxg5 {[%clk 1:18:05][%emt 0:00:18]} 13...
O-O {[%clk 1:17:28][%emt 0:06:15]} 14. Nc4 {[%clk 1:13:19][%emt 0:05:16]}
14... Rd8 {[%clk 1:10:26][%emt 0:07:33]} 15. Bf3 {[%clk 1:08:05][%emt 0:05:43]}
 15... b5 {[%clk 1:05:00][%emt 0:05:57]} 16. Nb6 {[%clk 1:04:20][%emt 0:04:14]}
 16... Nxb6 {[%clk 1:03:35][%emt 0:01:56]} 17. Bxc6 {[%clk 1:03:49][%emt
0:00:59]} 17... Rb8 {[%clk 1:03:59][%emt 0:00:07]} 18. Rad1 {[%clk
1:00:15][%emt 0:04:03]} 18... Bd7 {[%clk 1:04:12][%emt 0:00:19]} 19. Bxd7
{[%clk 0:59:07][%emt 0:01:38]} 19... Rxd7 {[%clk 1:04:26][%emt 0:00:16]} 20.
Rxd7 {[%clk 0:57:22][%emt 0:02:15]} 20... Nxd7 {[%clk 1:04:49][%emt 0:00:07]}
21. Ne4 {[%clk 0:57:10][%emt 0:00:41]} 21... f5 {[%clk 1:01:28][%emt 0:03:51]}
22. Rd1 {[%clk 0:52:04][%emt 0:05:37]} 22... Ne5 {[%clk 0:57:17][%emt 0:04:40]}
 23. Nc5 {[%clk 0:49:34][%emt 0:03:00]} 23... Rb6 {[%clk 0:57:28][%emt
0:00:20]} 24. Rd8+ {[%clk 0:44:25][%emt 0:05:39]} 24... Kf7 {[%clk
0:57:42][%emt 0:00:16]} 25. Kf1 {[%clk 0:44:47][%emt 0:00:09]} 25... b4 {[%clk
0:49:08][%emt 0:09:04]} 26. cxb4 {[%clk 0:34:01][%emt 0:11:15]} 26... Rxb4
{[%clk 0:49:20][%emt 0:00:18]} 27. Rd6 {[%clk 0:33:54][%emt 0:00:36]} 27...
Rxb2 {[%clk 0:47:55][%emt 0:01:55]} 28. Rxe6 {[%clk 0:32:52][%emt 0:01:32]}
28... Ng4 {[%clk 0:33:37][%emt 0:14:48]} 29. h3 {[%clk 0:30:05][%emt 0:03:18]} 1/2-1/2

[White "LAVAL, Nolan"]
[Black "MORALES, Maxime"]
[WhiteElo "1876"]
[BlackElo "1932"]
[Result "0-1"]
[Date "2026.03.06"]

[Event "Chpt Reg Jeunes Occitanie 2026 - Espalion"]
[Site "Espalion, France"]
[Round "5.6"]
[ECO "?"]
[Annotator "?"]
[TimeControl "1h30 + 30sec/cp"]

1. e4 {[%clk 1:30:57][%emt 0:00:02]} 1... c5 {[%clk 1:30:53][%emt 0:00:08]} 2.
Nf3 {[%clk 1:31:23][%emt 0:00:04]} 2... e6 {[%clk 1:31:20][%emt 0:00:03]} 3.
d4 {[%clk 1:31:42][%emt 0:00:11]} 3... cxd4 {[%clk 1:31:39][%emt 0:00:11]} 4.
Nxd4 {[%clk 1:31:56][%emt 0:00:15]} 4... a6 {[%clk 1:32:01][%emt 0:00:08]} 5.
c4 {[%clk 1:31:24][%emt 0:01:02]} 5... Nf6 {[%clk 1:31:58][%emt 0:00:33]} 6.
Nc3 {[%clk 1:31:49][%emt 0:00:05]} 6... Qc7 {[%clk 1:31:58][%emt 0:00:30]} 7.
Be2 {[%clk 1:21:48][%emt 0:10:30]} 7... b6 {[%clk 1:28:57][%emt 0:03:32]} 8.
Be3 {[%clk 1:19:42][%emt 0:02:35]} 8... Bb7 {[%clk 1:27:01][%emt 0:02:28]} 9.
f3 {[%clk 1:19:58][%emt 0:00:14]} 9... Be7 {[%clk 1:26:05][%emt 0:01:25]} 10.
O-O {[%clk 1:19:58][%emt 0:00:30]} 10... O-O {[%clk 1:24:59][%emt 0:01:37]}
11. Rc1 {[%clk 1:18:25][%emt 0:02:02]} 11... d6 {[%clk 1:24:05][%emt 0:01:24]}
12. Qd2 {[%clk 1:17:01][%emt 0:01:54]} 12... Nbd7 {[%clk 1:23:20][%emt
0:01:15]} 13. Nb3 {[%clk 1:15:32][%emt 0:01:59]} 13... Rac8 {[%clk
1:15:02][%emt 0:08:49]} 14. Rfd1 {[%clk 1:14:13][%emt 0:01:48]} 14... Qb8
{[%clk 1:09:22][%emt 0:06:10]} 15. a4 {[%clk 0:52:50][%emt 0:21:53]} 15... Nc5
{[%clk 0:59:14][%emt 0:10:38]} 16. Nd4 {[%clk 0:37:23][%emt 0:15:58]} 16...
Bd8 {[%clk 0:53:50][%emt 0:05:54]} 17. b4 {[%clk 0:35:09][%emt 0:02:44]} 17...
Ncd7 {[%clk 0:51:16][%emt 0:03:03]} 18. Nb3 {[%clk 0:35:00][%emt 0:00:39]}
18... Bc7 {[%clk 0:49:12][%emt 0:02:34]} 19. Bf4 {[%clk 0:22:09][%emt 0:13:19]}
 19... Ne5 {[%clk 0:45:22][%emt 0:04:23]} 20. Kh1 {[%clk 0:22:22][%emt
0:00:15]} 20... d5 {[%clk 0:29:34][%emt 0:16:20]} 21. Qc2 {[%clk 0:11:53][%emt
0:10:59]} 21... Nxc4 {[%clk 0:25:05][%emt 0:04:59]} 22. Bxc7 {[%clk
0:11:56][%emt 0:00:27]} 22... Qxc7 {[%clk 0:24:59][%emt 0:00:36]} 23. Na2
{[%clk 0:07:10][%emt 0:05:15]} 23... Qe5 {[%clk 0:22:22][%emt 0:03:08]} 24.
Bxc4 {[%clk 0:05:23][%emt 0:02:17]} 24... Rxc4 {[%clk 0:21:48][%emt 0:01:04]}
25. Qe2 {[%clk 0:04:57][%emt 0:00:54]} 25... Rxc1 {[%clk 0:20:01][%emt
0:02:20]} 26. Rxc1 {[%clk 0:05:21][%emt 0:00:05]} 26... dxe4 {[%clk
0:20:12][%emt 0:00:19]} 27. Re1 {[%clk 0:04:47][%emt 0:01:02]} 27... Qd5
{[%clk 0:18:56][%emt 0:01:47]} 28. Nac1 {[%clk 0:04:09][%emt 0:01:09]} 28...
exf3 {[%clk 0:18:25][%emt 0:01:01]} 29. Qe3 {[%clk 0:03:33][%emt 0:01:05]}
29... Ng4 {[%clk 0:16:57][%emt 0:01:59]} 30. Qxf3 {[%clk 0:03:48][%emt
0:00:14]} 30... Qxf3 {[%clk 0:14:07][%emt 0:03:21]} 31. gxf3 {[%clk
0:04:13][%emt 0:00:05]} 31... Bxf3+ {[%clk 0:14:26][%emt 0:00:11]} 32. Kg1
{[%clk 0:04:38][%emt 0:00:04]} 32... Rd8 {[%clk 0:13:18][%emt 0:01:38]} 33. h3
{[%clk 0:05:04][%emt 0:00:04]} 33... Nf6 {[%clk 0:13:39][%emt 0:00:10]} 34.
Re3 {[%clk 0:05:12][%emt 0:00:20]} 34... Bd1 {[%clk 0:12:46][%emt 0:01:23]}
35. Rc3 {[%clk 0:04:23][%emt 0:01:20]} 35... Nd5 {[%clk 0:11:15][%emt 0:02:02]}
 36. Rd3 {[%clk 0:04:32][%emt 0:00:20]} 36... Bxb3 {[%clk 0:10:07][%emt
0:01:39]} 37. Nxb3 {[%clk 0:05:00][%emt 0:00:02]} 37... Rc8 {[%clk
0:10:04][%emt 0:00:32]} 38. b5 {[%clk 0:05:21][%emt 0:00:10]} 38... axb5
{[%clk 0:09:47][%emt 0:00:48]} 39. axb5 {[%clk 0:05:45][%emt 0:00:05]} 39...
g6 {[%clk 0:09:51][%emt 0:00:26]} 40. Nd4 {[%clk 0:05:52][%emt 0:00:23]} 40...
Rc3 {[%clk 0:09:30][%emt 0:00:51]} 0-1

[White "LABOURET, Emile"]
[Black "BENNANI, Joachim"]
[WhiteElo "1706"]
[BlackElo "1727"]
[Result "1/2-1/2"]
[Date "2026.03.06"]

[Event "Chpt Reg Jeunes Occitanie 2026 - Espalion"]
[Site "Espalion, France"]
[Round "5.7"]
[ECO "?"]
[Annotator "?"]
[TimeControl "1h30 + 30sec/cp"]

1. e4 {[%clk 1:30:59][%emt 0:00:01]} 1... e6 {[%clk 1:30:54][%emt 0:00:06]} 2.
d4 {[%clk 1:31:23][%emt 0:00:06]} 2... d5 {[%clk 1:31:19][%emt 0:00:05]} 3. e5
{[%clk 1:31:28][%emt 0:00:25]} 3... c5 {[%clk 1:31:38][%emt 0:00:11]} 4. c3
{[%clk 1:31:51][%emt 0:00:07]} 4... Qb6 {[%clk 1:31:59][%emt 0:00:09]} 5. Nf3
{[%clk 1:31:54][%emt 0:00:27]} 5... Nc6 {[%clk 1:32:18][%emt 0:00:10]} 6. Bd3
{[%clk 1:31:27][%emt 0:00:57]} 6... cxd4 {[%clk 1:32:17][%emt 0:00:32]} 7.
cxd4 {[%clk 1:31:33][%emt 0:00:24]} 7... Bd7 {[%clk 1:32:38][%emt 0:00:09]} 8.
Bc2 {[%clk 1:29:19][%emt 0:02:44]} 8... Nb4 {[%clk 1:26:50][%emt 0:06:17]} 9.
O-O {[%clk 1:25:15][%emt 0:04:34]} 9... Nxc2 {[%clk 1:21:52][%emt 0:05:29]}
10. Qxc2 {[%clk 1:25:40][%emt 0:00:05]} 10... Rc8 {[%clk 1:21:52][%emt
0:00:30]} 11. Nc3 {[%clk 1:24:11][%emt 0:01:59]} 11... Ne7 {[%clk
1:20:59][%emt 0:01:22]} 12. Rd1 {[%clk 1:19:50][%emt 0:04:51]} 12... Nc6
{[%clk 1:19:20][%emt 0:02:09]} 13. Be3 {[%clk 1:15:59][%emt 0:04:21]} 13...
Be7 {[%clk 1:09:21][%emt 0:10:29]} 14. Rac1 {[%clk 1:11:48][%emt 0:04:41]}
14... Na5 {[%clk 1:00:42][%emt 0:09:09]} 15. Nd2 {[%clk 1:08:44][%emt 0:03:33]}
 15... O-O {[%clk 0:59:46][%emt 0:01:26]} 16. a3 {[%clk 1:01:52][%emt 0:07:23]}
 16... Rc7 {[%clk 0:53:34][%emt 0:06:41]} 17. b4 {[%clk 0:58:41][%emt 0:03:40]}
 17... Nc4 {[%clk 0:47:49][%emt 0:06:15]} 18. Nxc4 {[%clk 0:57:53][%emt
0:01:18]} 18... Rxc4 {[%clk 0:48:07][%emt 0:00:12]} 19. Qd2 {[%clk
0:52:35][%emt 0:05:48]} 19... a5 {[%clk 0:42:12][%emt 0:06:26]} 20. Na2 {[%clk
0:48:15][%emt 0:04:49]} 20... Rfc8 {[%clk 0:34:31][%emt 0:08:10]} 21. bxa5
{[%clk 0:44:36][%emt 0:04:10]} 21... Qb3 {[%clk 0:33:54][%emt 0:01:06]} 22.
Rb1 {[%clk 0:38:14][%emt 0:06:52]} 22... Qa4 {[%clk 0:30:03][%emt 0:04:21]}
23. Nc1 {[%clk 0:33:28][%emt 0:05:16]} 23... Rc2 {[%clk 0:26:45][%emt 0:03:48]}
 24. Qe1 {[%clk 0:32:42][%emt 0:01:15]} 24... Bb5 {[%clk 0:24:15][%emt
0:03:01]} 25. Nd3 {[%clk 0:29:22][%emt 0:03:50]} 25... Bxa3 {[%clk
0:14:44][%emt 0:10:01]} 26. Ra1 {[%clk 0:27:27][%emt 0:02:25]} 26... R8c3
{[%clk 0:13:44][%emt 0:01:29]} 27. Nc5 {[%clk 0:25:21][%emt 0:02:36]} 27...
Qc4 {[%clk 0:02:44][%emt 0:11:30]} 28. Bd2 {[%clk 0:23:19][%emt 0:02:33]}
28... Bxc5 {[%clk 0:02:27][%emt 0:00:47]} 29. Bxc3 {[%clk 0:23:19][%emt
0:00:30]} 29... Re2 {[%clk 0:02:44][%emt 0:00:12]} 30. Qf1 {[%clk
0:23:05][%emt 0:00:45]} 30... Qxc3 {[%clk 0:02:29][%emt 0:00:45]} 31. dxc5
{[%clk 0:22:28][%emt 0:01:06]} 31... Ba6 {[%clk 0:01:52][%emt 0:01:08]} 32. g3
{[%clk 0:16:53][%emt 0:06:05]} 32... Rxe5 {[%clk 0:01:15][%emt 0:01:07]} 33.
Qg2 {[%clk 0:16:51][%emt 0:00:32]} 33... Qxc5 {[%clk 0:01:28][%emt 0:00:17]}
34. Rdc1 {[%clk 0:16:27][%emt 0:00:54]} 34... Bc4 {[%clk 0:01:41][%emt
0:00:17]} 35. a6 {[%clk 0:13:36][%emt 0:03:21]} 35... bxa6 {[%clk
0:01:51][%emt 0:00:19]} 36. h4 {[%clk 0:13:05][%emt 0:01:02]} 36... a5 {[%clk
0:01:26][%emt 0:00:55]} 37. Rcb1 {[%clk 0:12:39][%emt 0:00:55]} 37... g6
{[%clk 0:01:21][%emt 0:00:36]} 38. Qf3 {[%clk 0:11:55][%emt 0:01:13]} 38...
Rf5 {[%clk 0:00:39][%emt 0:01:12]} 39. Qg2 {[%clk 0:10:20][%emt 0:02:06]}
39... e5 {[%clk 0:00:41][%emt 0:00:28]} 40. g4 {[%clk 0:08:45][%emt 0:02:04]}
40... Rf4 {[%clk 0:00:49][%emt 0:00:23]} 41. h5 {[%clk 0:07:49][%emt 0:01:25]}
41... Kg7 {[%clk 0:00:41][%emt 0:00:39]} 42. Re1 {[%clk 0:06:58][%emt 0:01:20]}
 42... Qd4 {[%clk 0:00:44][%emt 0:00:27]} 43. Ra3 {[%clk 0:07:07][%emt
0:00:22]} 43... Rxg4 {[%clk 0:00:49][%emt 0:00:25]} 44. Rg3 {[%clk
0:07:32][%emt 0:00:05]} 44... Rxg3 {[%clk 0:00:53][%emt 0:00:26]} 45. Qxg3
{[%clk 0:07:57][%emt 0:00:04]} 45... e4 {[%clk 0:00:46][%emt 0:00:38]} 46. Qf4
{[%clk 0:06:57][%emt 0:01:31]} 46... gxh5 {[%clk 0:00:36][%emt 0:00:40]} 47.
Kh2 {[%clk 0:06:53][%emt 0:00:32]} 47... Kf8 {[%clk 0:00:40][%emt 0:00:27]}
48. Qd6+ {[%clk 0:06:39][%emt 0:00:44]} 48... Ke8 {[%clk 0:00:47][%emt
0:00:22]} 49. Rg1 {[%clk 0:06:49][%emt 0:00:21]} 49... Qxf2+ {[%clk
0:01:04][%emt 0:00:12]} 50. Rg2 {[%clk 0:07:03][%emt 0:00:17]} 1/2-1/2

[White "FIORIO, Thomas"]
[Black "GERVAIS, Liam"]
[WhiteElo "1822"]
[BlackElo "1758"]
[Result "0-1"]
[Date "2026.03.06"]